bitfinex-derivatives/quotes_SOLF0:USTF0_20250731
["timestamp","ask_amount","ask_price","bid_price","bid_amount"]
[1754005501520,3.2,172.26,172.2,5.44882921]
[1754005501823,3.2,172.26,172.21,5.8071]
[1754005502114,3.2,172.26,172.2,5.44882921]
[1754005502512,3.2,172.26,172.23,5.8064]
[1754005502708,3.2,172.26,172.13,18.1049187]
[1754005502909,3.2,172.25,172.2,5.8074]
[1754005503112,3.2,172.25,172.17,5.44882921]
[1754005503514,3.2,172.24,172.14,5.44882921]
[1754005503715,5.44882921,172.23,172.14,5.44882921]
[1754005503920,3.2,172.22,172.12,5.44882921]
[1754005504113,3.2,172.2,172.14,5.44882921]
[1754005504324,3.2,172.2,172.18,5.44882921]
[1754005504514,3.2,172.22,172.18,5.44882921]
[1754005505216,3.2,172.21,172.2,5.8076]
[1754005506920,3.2,172.22,172.19,5.8079]
[1754005507321,3.2,172.28,172.18,5.44882921]
[1754005507522,3.2,172.24,172.2,5.8074]
[1754005507920,9.0065,172.24,172.19,5.8079]
[1754005508123,3.2,172.23,172.19,5.8079]
[1754005508715,3.2,172.23,172.2,5.8075]
[1754005509117,3.2,172.23,172.17,5.44882921]
[1754005509319,3.2,172.23,172.19,5.8078]
[1754005509722,3.2,172.23,172.17,5.44882921]
[1754005510126,8.64882921,172.28,172.18,5.44882921]
[1754005510320,3.2,172.27,172.18,5.44882921]
[1754005510631,3.2,172.24,172.18,5.44882921]
[1754005511124,3.2,172.24,172.21,5.8072]
[1754005511422,3.2,172.24,172.18,5.44882921]
[1754005511617,3.2,172.24,172.23,5.8066]
[1754005511824,3.2,172.27,172.22,5.44882921]
[1754005512022,3.2,172.27,172.24,5.8061]
[1754005512422,3.2,172.27,172.22,5.44882921]
[1754005512721,3.2,172.27,172.2,5.44882921]
[1754005512925,3.2,172.25,172.2,5.44882921]
[1754005513124,3.2,172.25,172.24,5.8063]
[1754005513523,3.2,172.24,172.2,5.44882921]
[1754005513819,3.2,172.23,172.2,5.44882921]
[1754005514024,3.2,172.24,172.2,5.44882921]
[1754005514218,3.2,172.24,172.23,5.8066]
[1754005514421,3.2,172.24,172.11,64.9553187]
[1754005514422,3.2,172.26,172.22,5.44882921]
[1754005514617,3.2,172.31,172.22,5.44882921]
[1754005515730,3.2,172.29,172.25,5.8057]
[1754005515929,3.2,172.29,172.22,5.44882921]
[1754005516427,3.2,172.28,172.22,5.44882921]
[1754005517122,3.2,172.28,172.25,5.8057]
[1754005517318,3.2,172.29,172.25,5.8057]
[1754005517520,3.2,172.29,172.22,5.44882921]
[1754005517724,3.2,172.28,172.24,5.44882921]
[1754005518224,3.2,172.36,172.26,5.44882921]
[1754005518619,5.8035,172.33,172.26,5.44882921]
[1754005518824,3.2,172.32,172.28,5.8047]
[1754005519024,5.8037,172.32,172.26,5.44882921]
[1754005519221,3.2,172.31,172.2,117.42882921]
[1754005519527,3.2,172.3,172.27,5.8051]
[1754005520120,3.2,172.3,172.28,5.8048]
[1754005520323,3.2,172.31,172.28,5.8048]
[1754005520726,3.2,172.3,172.24,5.44882921]
[1754005521030,3.2,172.3,172.23,5.44882921]
[1754005521230,3.2,172.29,172.23,5.44882921]
[1754005521632,390.5,172.38,172.25,5.44882921]
[1754005521633,3.2,172.28,172.25,5.44882921]
[1754005522029,5.44882921,172.37,172.27,5.44882921]
[1754005522228,5.803,172.34,172.3,5.8041]
[1754005522426,3.2,172.33,172.3,5.8041]
[1754005522730,3.2,172.33,172.31,5.8037]
[1754005523028,3.2,172.32,172.29,5.44882921]
[1754005523231,5.8031,172.34,172.3,5.804]
[1754005523429,3.2,172.33,172.29,5.44882921]
[1754005523829,3.2,172.32,172.29,5.44882921]
[1754005524030,3.2,172.34,172.29,5.44882921]
[1754005524227,3.2,172.33,172.29,5.44882921]
[1754005525236,3.2,172.38,172.31,5.44882921]
[1754005525432,3.2,172.37,172.33,5.44882921]
[1754005525627,3.2,172.42,172.33,5.44882921]
[1754005525827,5.801,172.4,172.36,5.8021]
[1754005526030,3.2,172.39,172.33,5.44882921]
[1754005526233,3.2,172.47,172.37,5.44882921]
[1754005526432,3.2,172.42,172.39,5.8011]
[1754005526731,3.2,172.4,172.39,5.8011]
[1754005527434,3.2,172.4,172.39,11.24992921]
[1754005527931,5.7993,172.45,172.4,5.8008]
[1754005528232,3.2,172.41,172.4,5.8008]
[1754005528426,502.14,172.48,172.39,5.44882921]
[1754005528427,3.15,172.45,172.39,5.44882921]
[1754005530030,3.15,172.43,172.39,5.44882921]
[1754005530420,3.15,172.43,172.41,5.8004]
[1754005531423,3.15,172.43,172.39,5.44882921]
[1754005531928,3.15,172.43,172.41,5.8004]
[1754005532330,3.15,172.43,172.37,5.44882921]
[1754005532530,8.95,172.43,172.4,5.8007]
[1754005532830,3.15,172.42,172.4,5.8007]
[1754005533031,3.15,172.39,172.33,5.44882921]
[1754005533233,3.15,172.39,172.31,5.44882921]
[1754005533633,3.15,172.39,172.33,5.44882921]
[1754005534135,3.15,172.39,172.38,5.8016]
[1754005535133,502.14,172.48,172.33,5.44882921]
[1754005535134,3.15,172.37,172.33,5.44882921]
[1754005535326,5.44882921,172.41,172.31,5.44882921]
[1754005535544,3.15,172.4,172.33,5.44882921]
[1754005536334,3.15,172.44,172.35,5.44882921]
[1754005536534,3.15,172.44,172.3,5.44882921]
[1754005536731,5.8005,172.42,172.38,5.8013]
[1754005536934,3.15,172.41,172.35,5.44882921]
[1754005537137,3.15,172.4,172.37,5.44882921]
[1754005537329,3.15,172.4,172.39,5.8013]
[1754005537834,3.15,172.4,172.35,5.44882921]
[1754005538034,3.15,172.4,172.31,5.44882921]
[1754005538233,3.15,172.4,172.33,5.8032]
[1754005538934,3.15,172.36,172.27,5.44882921]
[1754005539140,3.15,172.34,172.26,390.22]
[1754005539331,5.8038,172.32,172.26,390.22]
[1754005539531,3.15,172.31,172.26,390.22]
[1754005539739,111.8,172.38,172.26,390.22]
[1754005539740,3.15,172.34,172.26,390.22]
[1754005539932,3.15,172.34,172.29,5.44882921]
[1754005540135,3.15,172.37,172.29,5.44882921]
[1754005540435,5.8035,172.33,172.3,5.804]
[1754005540732,3.15,172.32,172.26,390.22]
[1754005540932,3.15,172.32,172.25,5.44882921]
[1754005541133,3.15,172.32,172.17,58.4256]
[1754005541334,3.15,172.31,172.22,5.44882921]
[1754005541538,3.15,172.27,172.22,5.44882921]
[1754005542241,3.15,172.31,172.24,5.44882921]
[1754005542836,3.15,172.31,172.22,5.44882921]
[1754005543039,5.8049,172.29,172.22,5.44882921]
[1754005543238,3.15,172.31,172.22,5.44882921]
[1754005543628,3.15,172.31,172.29,5.8045]
[1754005543830,3.15,172.31,172.24,5.44882921]
[1754005544031,3.15,172.31,172.3,5.8044]
[1754005547245,3.15,172.36,172.3,5.44882921]
[1754005547638,5.8021,172.37,172.33,5.8031]
[1754005547855,4.8128526,172.42,172.3,5.44882921]
[1754005547856,8.59882921,172.41,172.3,5.44882921]
[1754005548037,5.44882921,172.39,172.28,5.44882921]
[1754005548346,5.8027,172.36,172.32,5.8034]
[1754005548544,3.15,172.35,172.28,5.44882921]
[1754005548745,3.15,172.35,172.26,5.44882921]
[1754005548945,3.15,172.32,172.26,5.44882921]
[1754005549850,5.44882921,172.37,172.28,5.44882921]
[1754005550147,3.15,172.31,172.28,5.44882921]
[1754005550940,5.44882921,172.35,172.26,5.44882921]
[1754005551145,3.15,172.34,172.26,5.44882921]
[1754005551345,5.8037,172.32,172.26,5.8055]
[1754005551645,5.8037,172.32,172.24,5.44882921]
[1754005551646,3.15,172.31,172.22,5.44882921]
[1754005552047,3.15,172.31,172.25,5.8061]
[1754005552551,3.15,172.31,172.24,5.44882921]
[1754005553152,3.15,172.31,172.27,5.8051]
[1754005553352,3.15,172.31,172.24,5.44882921]
[1754005553555,3.15,172.31,172.2,5.44882921]
[1754005553556,3.15,172.31,172.28,5.44882921]
[1754005553755,3.15,172.36,172.28,5.44882921]
[1754005554256,3.15,172.36,172.3,5.804]
[1754005554454,3.15,172.36,172.28,5.44882921]
[1754005554755,3.15,172.36,172.31,5.8038]
[1754005555551,3.15,172.36,172.3,5.44882921]
[1754005555746,3.15,172.36,172.32,5.44882921]
[1754005556153,3.15,172.41,172.32,5.44882921]
[1754005556545,3.15,172.38,172.32,5.44882921]
[1754005556960,3.15,172.37,172.34,5.44882921]
[1754005557161,3.15,172.37,172.36,5.8024]
[1754005557351,3.15,172.42,172.34,5.44882921]
[1754005557955,5.8008,172.41,172.36,5.8022]
[1754005558155,3.15,172.4,172.36,5.8022]
[1754005558357,3.15,172.4,172.33,5.44882921]
[1754005558562,117.24882921,172.43,172.33,5.44882921]
[1754005558762,3.36,172.39,172.33,5.44882921]
[1754005559162,3.36,172.38,172.33,5.44882921]
[1754005559467,3.36,172.42,172.33,5.44882921]
[1754005560257,3.36,172.38,172.26,52.611]
[1754005560458,3.36,172.36,172.26,5.44882921]
[1754005560662,3.36,172.32,172.24,5.44882921]
[1754005560862,5.44882921,172.31,172.22,117.18882921]
[1754005561064,3.36,172.3,172.22,117.18882921]
[1754005561268,3.36,172.3,172.24,5.44882921]
[1754005561663,8.80882921,172.3,172.19,5.44882921]
[1754005561967,3.36,172.25,172.19,5.44882921]
[1754005562365,3.36,172.25,172.22,5.807]
[1754005562568,3.36,172.25,172.19,5.44882921]
[1754005563363,3.36,172.25,172.24,5.8064]
[1754005563564,3.36,172.3,172.21,5.44882921]
[1754005565070,3.36,172.28,172.23,5.8065]
[1754005565263,3.36,172.28,172.21,5.44882921]
[1754005565664,3.36,172.28,172.23,5.8067]
[1754005565965,3.36,172.28,172.21,5.44882921]
[1754005566164,3.36,172.27,172.23,5.44882921]
[1754005566670,3.36,172.27,172.26,5.8057]
[1754005566975,3.36,172.32,172.25,5.44882921]
[1754005567271,5.44882921,172.28,172.16,396.5053187]
[1754005567464,3.36,172.27,172.17,5.44882921]
[1754005567664,3.36,172.24,172.2,5.8075]
[1754005568270,5.44882921,172.28,172.17,5.44882921]
[1754005568271,3.36,172.21,172.17,5.44882921]
[1754005568670,3.36,172.2,172.17,5.44882921]
[1754005569072,3.36,172.19,172.14,5.44882921]
[1754005569273,3.36,172.19,172.12,111.72]
[1754005569566,3.36,172.19,172.12,117.16882921]
[1754005569770,3.36,172.19,172.17,5.8086]
[1754005569973,3.36,172.18,172.17,5.8086]
[1754005570270,3.36,172.18,172.13,5.44882921]
[1754005570663,5.44882921,172.22,172.16,5.809]
[1754005570664,9.1675,172.21,172.16,5.809]
[1754005570864,3.36,172.2,172.13,5.44882921]
[1754005571370,3.36,172.18,172.13,5.44882921]
[1754005571969,3.36,172.18,172.11,5.44882921]
[1754005572171,3.36,172.18,172.1,5.44882921]
[1754005572470,3.36,172.17,172.08,5.44882921]
[1754005573073,3.36,172.14,172.08,5.44882921]
[1754005573463,5.8098,172.14,172.09,5.8113]
[1754005573666,3.36,172.13,172.08,5.44882921]
[1754005574167,3.36,172.13,172.06,390.16]
[1754005574168,3.36,172.13,172.06,395.60882921]
[1754005574375,3.36,172.13,172.06,5.44882921]
[1754005574568,3.36,172.09,172.05,5.8128]
[1754005574874,3.36,172.08,172.04,111.72]
[1754005575073,3.36,172.06,172.04,117.5328]
[1754005575269,3.36,172.06,172.04,111.72]
[1754005575472,3.36,172.06,172.03,5.44882921]
[1754005575774,3.36,172.08,172.01,5.44882921]
[1754005576162,3.36,172.08,172.04,5.813]
[1754005576371,3.36,172.08,172.01,5.44882921]
[1754005577870,3.36,172.08,172.04,5.8129]
[1754005578176,3.36,172.08,172.01,5.44882921]
[1754005578570,9.1718,172.08,172.03,5.8132]
[1754005578770,3.36,172.07,172.01,5.44882921]
[1754005579273,3.36,172.06,172.04,5.8131]
[1754005579473,3.36,172.05,172.04,5.8131]
[1754005580269,3.36,172.09,172.03,5.44882921]
[1754005580475,3.36,172.09,172.07,5.44882921]
[1754005580675,3.36,172.09,172.07,11.26072921]
[1754005580876,3.36,172.17,172.07,5.44882921]
[1754005581075,3.36,172.17,172.09,5.44882921]
[1754005581672,3.36,172.21,172.11,5.44882921]
[1754005582077,5.808,172.2,172.14,5.8095]
[1754005582274,3.36,172.19,172.14,5.8095]
[1754005582575,3.36,172.19,172.11,5.44882921]
[1754005582977,3.36,172.17,172.13,5.8099]
[1754005583178,3.36,172.17,172.11,5.44882921]
[1754005583477,3.36,172.17,172.13,5.8098]
[1754005583678,3.36,172.17,172.11,5.44882921]
[1754005584675,3.36,172.17,172.13,5.8101]
[1754005584873,3.36,172.15,172.11,5.44882921]
[1754005585878,3.36,172.19,172.13,5.44882921]
[1754005586078,3.36,172.19,172.13,11.25862921]
[1754005586280,3.36,172.19,172.13,5.44882921]
[1754005586579,3.36,172.18,172.13,11.25882921]
[1754005586769,3.36,172.16,172.13,5.44882921]
[1754005587374,3.36,172.22,172.06,111.74]
[1754005587573,3.36,172.2,172.11,5.44882921]
[1754005587777,5.8087,172.18,172.11,11.25932921]
[1754005587977,3.36,172.17,172.11,11.25932921]
[1754005588478,3.32,172.16,172.11,11.25932921]
[1754005588779,3.32,172.16,172.12,5.8104]
[1754005588977,3.32,172.15,172.11,5.44882921]
[1754005590181,3.32,172.14,172.11,5.44882921]
[1754005590778,3.32,172.14,172.09,5.44882921]
[1754005590973,3.32,172.14,172.05,5.44882921]
[1754005591380,3.32,172.11,172.07,5.8119]
[1754005591576,3.32,172.1,172.07,11.26072921]
[1754005591777,3.32,172.11,172.07,5.44882921]
[1754005591981,5.811,172.11,172.07,5.44882921]
[1754005592181,3.32,172.1,172.07,5.44882921]
[1754005592483,5.8116,172.09,172.03,11.26192921]
[1754005592690,3.32,172.08,172.03,5.44882921]
[1754005592883,3.32,172.07,172.03,5.44882921]
[1754005593081,3.32,172.12,172.06,5.8125]
[1754005593574,5.811,172.11,172.06,5.8122]
[1754005593888,3.32,172.1,172.06,5.8122]
[1754005594484,3.32,172.1,172.05,11.26152921]
[1754005594784,3.32,172.1,172.03,5.44882921]
[1754005594785,5.8121,172.08,172.03,5.44882921]
[1754005594984,3.32,172.1,172.01,5.44882921]
[1754005595285,5.8121,172.08,172.01,5.44882921]
[1754005595583,3.32,172.07,172.01,5.44882921]
[1754005595974,3.32,172.07,172.03,5.8134]
[1754005597188,9.1323,172.07,172.03,5.8134]
[1754005597382,5.44882921,172.11,172.04,5.8131]
[1754005597588,3.32,172.04,171.97,111.7]
[1754005597790,3.32,172.08,172.0,5.44882921]
[1754005597985,3.32,172.04,172.0,11.26312921]
[1754005598182,3.32,172.04,171.96,390.28]
[1754005598382,3.32,172.04,171.97,5.44882921]
[1754005598584,3.32,172.03,171.99,5.8145]
[1754005598979,5.8141,172.02,171.97,5.8153]
[1754005599181,3.32,172.01,171.96,390.28]
[1754005599483,3.32,171.99,171.95,11.26472921]
[1754005599689,5.8145,172.0,171.95,11.26472921]
[1754005599880,3.32,171.97,171.95,5.44882921]
[1754005600084,3.32,172.04,171.95,5.44882921]
[1754005601091,3.32,172.0,171.96,5.8156]
[1754005601386,3.32,171.97,171.96,5.8156]
[1754005602191,3.32,171.97,171.87,12.6476183]
[1754005602387,3.32,171.97,171.93,5.44882921]
[1754005602587,3.32,171.96,171.93,5.44882921]
[1754005602787,3.32,171.96,171.94,5.8163]
[1754005602992,3.32,171.96,171.93,5.44882921]
[1754005603788,3.32,171.95,171.94,5.8165]
[1754005605388,5.44882921,171.99,171.9,5.44882921]
[1754005605687,3.32,171.98,171.88,111.68]
[1754005605888,5.8156,171.97,171.92,5.8169]
[1754005606086,3.32,171.96,171.92,5.8169]
[1754005606288,3.32,171.96,171.89,5.44882921]
[1754005606494,3.32,171.96,171.92,5.817]
[1754005606690,3.32,171.94,171.87,1.0102183]
[1754005607600,3.32,171.94,171.89,5.8182]
[1754005607798,3.32,171.94,171.87,1.0102183]
[1754005608389,3.32,171.94,171.89,5.8182]
[1754005608593,3.32,171.94,171.87,1.0102183]
[1754005609294,3.32,171.92,171.84,5.44882921]
[1754005609490,3.32,171.92,171.86,5.8191]
[1754005609691,3.32,171.9,171.83,1.01264349]
[1754005610091,3.32,171.88,171.85,5.8195]
[1754005610295,3.32,171.88,171.83,1.01264349]
[1754005610598,9.1387,171.88,171.84,5.8197]
[1754005610800,3.32,171.87,171.83,1.01264349]
[1754005611097,3.32,171.87,171.85,5.8194]
[1754005611299,123.3302,171.99,171.83,1.01264349]
[1754005611300,3.32,171.89,171.83,1.01264349]
[1754005611486,3.32,171.89,171.83,6.4614727]
[1754005612289,3.32,171.89,171.88,5.8185]
[1754005612491,396.26882921,172.0,171.87,5.44882921]
[1754005612492,3.32,171.93,171.87,5.44882921]
[1754005612696,3.32,171.95,171.92,5.44882921]
[1754005612893,3.32,171.95,171.94,5.8165]
[1754005613093,3.32,171.95,171.92,5.44882921]
[1754005613094,390.82,172.0,171.92,5.44882921]
[1754005613398,3.32,171.99,171.92,5.44882921]
[1754005613600,3.32,171.97,171.93,5.8166]
[1754005613799,3.32,171.97,171.9,5.44882921]
[1754005613997,5.8159,171.96,171.91,5.8173]
[1754005614203,5.44882921,171.98,171.87,5.44882921]
[1754005614204,3.32,171.95,171.87,5.44882921]
[1754005614596,5.44882921,171.98,171.9,5.8178]
[1754005614792,3.32,171.99,171.86,111.7]
[1754005615093,3.32,172.03,171.99,5.8146]
[1754005615604,3.32,172.03,171.95,5.44882921]
[1754005616001,3.32,172.03,171.97,5.44882921]
[1754005616302,3.32,172.03,172.02,5.8138]
[1754005616499,3.32,172.03,171.97,5.44882921]
[1754005616700,5.8138,172.03,171.98,5.8149]
[1754005616999,3.32,172.02,171.93,5.44882921]
[1754005617200,8.76882921,172.02,171.93,5.44882921]
[1754005617403,3.32,172.01,171.92,5.44882921]
[1754005617801,5.8146,172.0,171.95,5.8159]
[1754005618003,3.32,171.99,171.95,5.8159]
[1754005618200,3.32,171.99,171.92,5.44882921]
[1754005618400,3.05,172.01,171.94,5.44882921]
[1754005618907,5.8142,172.01,171.96,5.8158]
[1754005619201,3.05,172.03,171.93,5.44882921]
[1754005619501,5.8146,172.0,171.95,5.816]
[1754005619699,3.05,171.99,171.93,5.44882921]
[1754005620105,3.05,171.99,171.91,111.68]
[1754005620106,3.05,171.99,171.91,117.12882921]
[1754005620503,3.05,172.01,171.93,5.44882921]
[1754005620708,3.05,172.01,171.95,5.44882921]
[1754005620908,8.8644,172.01,171.96,5.8156]
[1754005621104,3.05,172.0,171.95,5.44882921]
[1754005621403,3.05,171.99,171.95,5.44882921]
[1754005621616,3.05,172.04,171.95,5.44882921]
[1754005622103,5.44882921,172.05,171.95,5.44882921]
[1754005622307,3.05,172.07,171.99,5.44882921]
[1754005622510,3.05,172.07,172.01,5.44882921]
[1754005623107,3.05,172.07,172.03,5.8133]
[1754005623810,3.05,172.09,172.04,5.8131]
[1754005624011,3.05,172.09,172.03,5.44882921]
[1754005624309,3.05,172.09,171.92,11.6344]
[1754005624612,3.05,172.09,172.03,5.44882921]
[1754005624905,8.8615,172.09,172.04,5.8128]
[1754005625110,8.8615,172.09,171.93,52.6332]
[1754005625111,3.05,172.08,172.05,5.44882921]
[1754005625707,3.05,172.07,172.04,5.44882921]
[1754005625904,5.44882921,172.14,172.04,5.44882921]
[1754005626106,3.05,172.05,172.04,5.44882921]
[1754005626412,3.05,172.08,172.04,5.44882921]
[1754005626606,3.05,172.07,172.04,5.44882921]
[1754005627005,5.44882921,172.14,172.04,5.44882921]
[1754005627213,3.05,172.06,172.04,5.44882921]
[1754005627508,3.05,172.13,172.04,5.44882921]
[1754005628111,5.44882921,172.14,172.04,5.44882921]
[1754005628310,3.05,172.13,172.04,5.44882921]
[1754005629216,3.05,172.13,172.06,5.8122]
[1754005629409,3.05,172.13,172.04,5.44882921]
[1754005629611,3.05,172.13,172.05,5.8126]
[1754005629811,3.05,172.13,172.04,5.44882921]
[1754005630011,3.05,172.13,172.06,5.44882921]
[1754005630214,3.05,172.13,172.09,5.8112]
[1754005630608,3.05,172.13,172.07,5.44882921]
[1754005631012,3.05,172.12,172.09,5.44882921]
[1754005631212,3.05,172.16,172.07,5.44882921]
[1754005632319,3.05,172.11,172.07,5.44882921]
[1754005632516,3.05,172.16,172.07,5.44882921]
[1754005632724,3.05,172.15,172.14,5.8094]
[1754005633110,390.82,172.21,172.13,5.44882921]
[1754005633317,3.05,172.16,172.15,5.8093]
[1754005633519,3.05,172.15,172.13,5.44882921]
[1754005634420,3.05,172.14,172.11,5.44882921]
[1754005634618,3.05,172.19,172.1,5.44882921]
[1754005634815,5.8085,172.18,172.1,5.44882921]
[1754005635015,3.05,172.17,172.12,5.44882921]
[1754005635415,5.8088,172.17,172.12,5.44882921]
[1754005635626,3.05,172.15,172.12,5.44882921]
[1754005635912,3.05,172.14,172.12,11.25912921]
[1754005636112,5.44882921,172.18,172.08,5.44882921]
[1754005636322,3.05,172.15,172.08,5.44882921]
[1754005636509,3.05,172.15,172.11,5.8107]
[1754005636711,3.05,172.15,172.03,11.6268]
[1754005636712,3.05,172.15,172.1,5.44882921]
[1754005636912,390.82,172.21,172.03,11.6268]
[1754005636913,3.05,172.2,172.12,5.44882921]
[1754005637312,3.05,172.17,172.13,5.8098]
[1754005637511,3.05,172.17,172.12,5.44882921]
[1754005637816,3.05,172.19,172.1,5.44882921]
[1754005638020,3.05,172.17,172.07,5.44882921]
[1754005638415,3.05,172.13,172.09,5.8114]
[1754005638610,3.05,172.13,172.07,5.44882921]
[1754005639016,3.05,172.13,172.02,41.0]
[1754005639223,3.05,172.13,172.05,5.44882921]
[1754005640111,3.05,172.11,172.03,5.44882921]
[1754005640316,3.05,172.11,172.0,390.74]
[1754005640515,3.05,172.09,172.0,396.18882921]
[1754005641022,3.05,172.09,172.0,390.74]
[1754005641221,3.05,172.09,172.04,5.813]
[1754005641919,3.05,172.08,172.04,5.813]
[1754005642316,111.46,172.17,172.0,396.18882921]
[1754005642317,111.46,172.17,172.02,5.44882921]
[1754005642624,3.05,172.15,172.04,5.44882921]
[1754005642920,3.05,172.12,172.02,5.44882921]
[1754005643127,5.44882921,172.11,172.01,5.44882921]
[1754005643323,3.05,172.1,172.01,5.44882921]
[1754005643626,8.8613,172.1,172.05,5.8127]
[1754005643812,3.05,172.09,172.05,5.8127]
[1754005644124,3.05,172.09,172.03,5.44882921]
[1754005644322,3.05,172.09,172.07,5.8118]
[1754005645016,3.05,172.08,172.07,5.8118]
[1754005645331,3.05,172.08,172.0,390.74]
[1754005645332,3.05,172.1,172.01,5.44882921]
[1754005645719,3.05,172.09,172.05,5.8128]
[1754005646227,5.8114,172.09,172.04,5.813]
[1754005646525,3.05,172.08,172.01,5.44882921]
[1754005646722,3.05,172.08,172.05,5.8125]
[1754005647028,3.05,172.06,172.05,5.8125]
[1754005647224,5.44882921,172.12,172.01,5.44882921]
[1754005647422,3.05,172.09,172.0,390.74]
[1754005647827,5.8124,172.07,172.03,5.8132]
[1754005648030,3.05,172.06,172.03,5.8132]
[1754005648425,3.19,172.05,172.04,5.8131]
[1754005648931,111.46,172.17,172.01,5.44882921]
[1754005648932,3.19,172.09,172.01,5.44882921]
[1754005649434,3.19,172.07,172.03,5.8132]
[1754005649824,3.19,172.07,172.0,390.74]
[1754005650627,3.19,172.07,171.98,111.44]
[1754005650825,3.19,172.07,172.01,5.8139]
[1754005651026,3.19,172.04,171.98,111.44]
[1754005652132,3.19,172.04,172.02,5.8137]
[1754005652424,3.19,172.07,172.01,5.44882921]
[1754005652822,3.19,172.07,172.06,5.8124]
[1754005653023,3.19,172.06,172.03,5.44882921]
[1754005653432,5.44882921,172.11,172.03,5.8133]
[1754005653638,3.19,172.08,171.99,5.44882921]
[1754005654026,5.8131,172.05,172.01,5.814]
[1754005654221,3.19,172.03,172.01,5.814]
[1754005654428,3.19,172.04,171.99,5.44882921]
[1754005654732,3.19,172.02,172.01,5.8141]
[1754005655430,3.19,172.06,171.99,5.44882921]
[1754005655733,3.19,172.1,172.01,5.44882921]
[1754005655926,3.19,172.06,172.01,5.44882921]
[1754005656127,5.44882921,172.11,172.01,5.44882921]
[1754005656330,5.8112,172.1,172.03,5.44882921]
[1754005656533,3.19,172.12,172.03,5.44882921]
[1754005656727,3.19,172.12,172.02,5.44882921]
[1754005656935,5.44882921,172.13,172.02,5.44882921]
[1754005656936,3.19,172.08,172.04,5.8129]
[1754005657427,9.0018,172.08,172.02,5.44882921]
[1754005657628,3.19,172.07,172.02,5.44882921]
[1754005658025,3.19,172.07,172.06,5.8121]
[1754005658630,3.19,172.09,172.04,5.44882921]
[1754005658933,3.19,172.14,172.04,5.44882921]
[1754005659130,5.8105,172.12,172.08,5.8116]
[1754005659325,3.19,172.11,172.08,5.8116]
[1754005660032,3.19,172.12,172.06,5.44882921]
[1754005660340,3.19,172.12,172.04,5.44882921]
[1754005660632,3.19,172.11,172.04,5.44882921]
[1754005661032,5.8103,172.13,172.09,5.8113]
[1754005661331,5.44882921,172.15,172.06,5.44882921]
[1754005661531,8.9999,172.14,172.06,5.44882921]
[1754005661732,5.8099,172.14,172.06,5.44882921]
[1754005661927,3.19,172.13,172.06,5.44882921]
[1754005662236,3.19,172.12,172.11,5.8105]
[1754005662455,3.19,172.15,172.08,5.44882921]
[1754005662827,3.19,172.15,172.13,5.8099]
[1754005663139,3.19,172.16,172.13,5.8099]
[1754005663435,3.19,172.14,172.13,5.8099]
[1754005664031,401.0345135,172.21,172.14,5.8096]
[1754005664236,4.07431905,172.2,172.14,5.8096]
[1754005664543,3.19,172.18,172.12,5.44882921]
[1754005664738,3.19,172.18,172.15,5.8093]
[1754005665239,3.19,172.18,172.12,5.44882921]
[1754005665428,3.19,172.17,172.14,5.44882921]
[1754005665828,3.19,172.23,172.14,5.44882921]